bitfinex/quotes_ETHUSD_20250602
["timestamp","ask_amount","ask_price","bid_price","bid_amount"]
[1748878798075,0.2666,2537.1,2536.9,8.38368752]
[1748878798528,0.2666,2537.1,2536.8,11.94190687]
[1748878798732,0.2666,2537.1,2536.9,8.3838129]
[1748878799569,0.2666,2537.1,2536.9,4.442]
[1748878800436,4.20814964,2537.1,2536.6,8.0]
[1748878800666,0.8166,2537.3,2536.9,3.94170636]
[1748878800998,0.2666,2537.9,2537.3,3.94116492]
[1748878801155,0.2666,2537.9,2537.1,8.0]
[1748878801156,0.2666,2537.9,2537.5,3.9408529]
[1748878801355,4.20686634,2537.9,2537.6,4.441]
[1748878801593,7.58663041,2537.7,2537.6,4.441]
[1748878803497,7.58663041,2537.7,2537.3,3.94110677]
[1748878803700,7.97862422,2537.7,2537.3,3.94110677]
[1748878803868,7.97862422,2537.7,2537.4,4.44]
[1748878804071,11.91923312,2537.7,2537.4,4.44]
[1748878804370,7.97862422,2537.7,2537.4,4.44]
[1748878804811,7.97862422,2537.7,2537.5,4.44]
[1748878804976,11.91920582,2537.7,2537.5,4.44]
[1748878805311,0.2666,2537.5,2536.8,0.7829]
[1748878805524,0.55,2537.6,2536.9,12.47841197]
[1748878805808,8.24522422,2537.7,2537.3,3.94111616]
[1748878805982,12.18582924,2537.7,2537.4,4.439]
[1748878807008,8.24522422,2537.7,2537.1,8.0]
[1748878807212,7.58663041,2537.6,2537.2,4.439]
[1748878807374,4.59930217,2537.7,2537.2,8.41969463]
[1748878807576,4.59930217,2537.7,2537.2,8.38028372]
[1748878807799,4.59930217,2537.7,2536.8,0.7829]
[1748878807800,7.58663041,2537.5,2536.8,0.7829]
[1748878808109,7.58663041,2537.2,2536.9,12.438]
[1748878808407,4.20770997,2537.4,2536.9,16.37973248]
[1748878808628,4.20770997,2537.4,2536.9,12.438]
[1748878808928,3.94122162,2537.3,2536.9,12.438]
[1748878809226,0.2666,2537.4,2536.9,12.438]
[1748878809507,7.58663041,2537.5,2537.0,4.438]
[1748878809723,0.39199381,2537.7,2537.2,3.94131303]
[1748878809872,0.39199381,2537.7,2537.6,3.94073139]
[1748878810077,0.2666,2537.9,2537.6,4.437]
[1748878810296,0.39153184,2537.9,2537.6,8.37771259]
[1748878810505,7.58663041,2538.0,2537.6,8.37771259]
[1748878810705,9.15994165,2538.0,2537.6,4.437]
[1748878811584,1.7648195,2538.3,2537.7,0.7563]
[1748878811816,7.58663041,2538.5,2537.7,0.79570571]
[1748878811978,0.65919567,2538.6,2537.7,8.79570571]
[1748878812173,0.02,2538.9,2538.0,3.94011032]
[1748878812374,3.93887008,2538.8,2538.2,0.7563]
[1748878812615,7.58663041,2538.5,2538.0,4.69628405]
[1748878812781,7.58663041,2538.5,2538.3,4.436]
[1748878813324,0.40727648,2538.9,2538.5,0.7908]
[1748878813538,0.40727648,2538.9,2538.6,4.436]
[1748878813691,3.93889876,2538.8,2538.6,4.436]
[1748878814346,4.34606923,2538.9,2538.6,4.436]
[1748878814525,3.93887953,2538.8,2538.6,4.436]
[1748878814724,4.34607187,2538.9,2538.6,4.436]
[1748878814906,4.34607187,2538.9,2538.3,4.73037099]
[1748878815115,11.52551114,2538.8,2538.4,4.434]
[1748878815314,0.40727648,2538.9,2538.5,3.9392408]
[1748878815488,0.40727648,2538.9,2538.5,3.97857471]
[1748878815695,0.40727648,2538.9,2538.5,3.9391831]
[1748878816218,0.40727648,2538.9,2538.4,9.68390157]
[1748878816417,0.02,2538.9,2538.8,3.93886875]
[1748878816617,0.02,2538.9,2538.8,18.09913446]
[1748878816835,0.02,2538.9,2538.8,18.05975563]
[1748878817307,0.02,2538.9,2538.8,18.81025563]
[1748878817936,0.02,2538.9,2538.8,9.14438688]
[1748878818146,0.02,2538.9,2538.8,18.80925563]
[1748878818918,0.02,2538.9,2538.8,18.80825563]
[1748878820110,0.02,2538.9,2538.8,13.08325563]
[1748878820314,0.02,2538.9,2538.8,18.80825563]
[1748878822155,0.02,2538.9,2538.8,14.37625563]
[1748878822314,0.02,2538.9,2538.8,18.80625563]
[1748878822520,0.02,2538.9,2538.8,17.51325563]
[1748878827258,0.02,2538.9,2538.8,13.08325563]
[1748878827488,0.02,2538.9,2538.8,17.51025563]
[1748878827706,0.02,2538.9,2538.8,13.08325563]
[1748878827863,0.02,2538.9,2538.8,18.80225563]
[1748878832479,0.02,2539.9,2539.8,4.70761789]
[1748878832792,0.02,2539.9,2539.8,4.89476179]
[1748878832945,0.02,2539.9,2539.8,17.68284801]
[1748878833144,0.02,2539.9,2539.8,17.64347968]
[1748878834891,0.02,2539.9,2539.8,13.21947968]
[1748878835094,0.02,2539.9,2539.8,17.64247968]
[1748878838589,0.02,2540.9,2540.8,3.93576826]
[1748878838787,0.02,2540.9,2540.8,9.26109315]
[1748878839083,0.02,2540.9,2540.8,9.2217429]
[1748878839648,0.02,2540.9,2540.8,10.0218429]
[1748878839870,0.02,2540.9,2540.8,10.0208429]
[1748878841662,0.02,2540.9,2540.8,5.6018429]
[1748878841861,0.02,2540.9,2540.8,10.0198429]
[1748878846984,0.02,2540.9,2540.8,5.6018429]
[1748878847286,0.02,2540.9,2540.8,10.0168429]
[1748878851385,0.02,2540.9,2540.7,3.93585289]
[1748878851583,0.02,2540.9,2540.8,4.412]
[1748878851764,0.02,2540.9,2540.8,8.0]
[1748878851962,0.02,2540.9,2540.5,3.93610012]
[1748878852167,0.3066,2540.8,2540.6,4.412]
[1748878852899,0.3066,2540.8,2540.4,3.93636799]
[1748878852900,7.58663041,2540.7,2540.4,3.93636799]
[1748878853200,7.58663041,2540.7,2540.5,12.411]
[1748878853800,7.58663041,2540.7,2540.5,16.34722377]
[1748878854598,0.3066,2540.8,2540.5,16.34722377]
[1748878854599,0.3066,2540.8,2540.5,12.411]
[1748878854799,0.3066,2540.8,2540.6,3.93601063]
[1748878854985,0.3066,2540.8,2540.7,3.93592317]
[1748878855189,0.3066,2540.8,2540.6,3.93601565]
[1748878855493,0.3066,2540.8,2540.6,3.93595552]
[1748878855698,0.3066,2540.8,2540.7,3.93592317]
[1748878855897,0.02,2540.9,2540.7,3.97528126]
[1748878856082,0.02,2540.9,2540.8,4.41]
[1748878861387,1.7548538,2540.9,2540.6,4.407]
[1748878862287,5.690568,2540.9,2540.6,4.407]
[1748878862507,1.7548538,2540.9,2540.6,8.34296565]
[1748878862707,0.57,2540.9,2540.7,3.93590039]
[1748878863239,0.57,2540.9,2540.7,3.93591464]
[1748878863420,0.57,2540.9,2540.7,4.407]
[1748878863600,4.50574491,2540.9,2540.7,4.407]
[1748878863998,4.50574491,2540.9,2540.4,11.9362549]
[1748878864199,0.3066,2540.6,2540.3,3.93645008]
[1748878864430,0.3066,2540.6,2540.4,4.406]
[1748878864609,0.3066,2540.6,2539.9,0.8156]
[1748878864835,7.58663041,2540.4,2539.8,0.47076179]
[1748878865036,7.58663041,2540.4,2539.9,4.406]
[1748878865333,0.3066,2540.6,2540.2,3.93655175]
[1748878865538,0.3066,2540.6,2540.3,3.93643014]
[1748878865698,0.3066,2540.6,2540.2,8.34260926]
[1748878866443,0.3066,2540.6,2540.3,3.93653935]
[1748878866624,0.3066,2540.6,2540.2,8.34263434]
[1748878866970,0.3066,2540.6,2540.3,3.93654292]
[1748878867112,0.3066,2540.6,2540.2,4.406]
[1748878867443,0.3066,2540.6,2540.3,3.93646101]
[1748878868242,0.3066,2540.8,2540.5,3.93623302]
[1748878868433,0.3066,2540.8,2540.6,4.405]
[1748878871649,0.02,2540.9,2540.7,3.93582254]
[1748878872718,0.02,2540.9,2540.6,8.34098693]
[1748878873047,0.02,2540.9,2540.7,4.402]
[1748878873416,0.02,2540.9,2540.8,11.97512557]
[1748878873640,0.02,2540.9,2540.8,12.74236826]
[1748878874348,0.02,2540.9,2540.8,12.9616984]
[1748878874578,0.02,2540.9,2540.8,12.74236826]
[1748878874927,0.02,2540.9,2540.8,12.96169393]
[1748878875155,0.02,2540.9,2540.8,14.91634896]
[1748878875809,0.02,2540.9,2540.8,15.13567405]
[1748878875971,0.02,2540.9,2540.8,15.13568735]
[1748878876135,0.02,2540.9,2540.8,14.91634896]
[1748878876329,0.02,2540.9,2540.8,0.21933922]
[1748878876539,0.02,2540.9,2540.5,8.33715962]
[1748878876726,0.02,2540.9,2540.5,4.401]
[1748878876947,0.02,2540.9,2540.5,8.33710228]
[1748878877235,0.02,2540.9,2540.2,8.7669]
[1748878877461,3.95564597,2540.9,2540.5,8.0]
[1748878877761,3.95561512,2540.9,2540.6,4.4]
[1748878877938,0.3066,2540.7,2540.6,4.4]
[1748878879976,7.58663041,2540.8,2540.6,4.4]
[1748878880176,0.3266,2540.9,2540.6,4.4]
[1748878880384,0.3266,2540.9,2540.6,8.33601204]
[1748878880881,0.02,2540.9,2540.8,3.93576826]
[1748878882177,0.02,2540.9,2540.8,4.69926826]
[1748878882809,0.02,2540.9,2540.8,4.73861709]
[1748878884398,0.02,2540.9,2540.8,9.09626826]
[1748878884800,0.02,2540.9,2540.8,9.31555178]
[1748878885003,0.02,2540.9,2540.8,10.67153672]
[1748878886395,0.02,2540.9,2540.8,10.89083031]
[1748878886600,0.02,2540.9,2540.8,6.27453672]
[1748878886805,0.02,2540.9,2540.8,5.51103672]
[1748878887125,0.02,2540.9,2540.8,1.57526846]
[1748878887426,0.02,2540.9,2540.8,16.33076826]
[1748878887718,0.02,2540.9,2540.7,4.395]
[1748878887916,0.02,2540.9,2540.7,8.33088026]
[1748878888266,0.02,2540.9,2540.6,9.22722005]
[1748878888471,0.3066,2540.8,2540.7,12.394]
[1748878888787,0.3066,2540.8,2540.7,12.61346128]
[1748878889103,0.02,2540.9,2540.8,3.93576826]
[1748878889998,0.02,2540.9,2540.7,8.32985169]
[1748878890215,0.02,2540.9,2540.7,4.394]
[1748878891216,0.02,2540.9,2540.7,8.32985757]
[1748878891418,0.02,2540.9,2540.8,3.93576826]
[1748878894844,0.02,2540.9,2540.8,5.24403084]
[1748878895351,0.02,2540.9,2540.8,8.32676826]
[1748878895573,0.02,2540.9,2540.8,16.32676826]
[1748878896037,0.02,2540.9,2540.8,17.14926826]
[1748878896417,0.02,2540.9,2540.8,17.36867582]
[1748878896615,0.02,2540.9,2540.8,17.14926826]
[1748878896820,0.02,2540.9,2540.8,19.25778711]
[1748878898453,0.02,2541.9,2541.8,12.75671984]
[1748878898748,0.02,2541.9,2541.8,17.14671984]
[1748878898928,0.02,2541.9,2541.8,17.36618813]
[1748878899130,0.02,2541.9,2541.8,17.14671984]
[1748878899341,0.02,2541.9,2541.8,19.25482631]
[1748878900465,0.02,2541.9,2541.8,18.43132631]
[1748878900751,0.3466,2541.9,2541.6,8.3224623]
[1748878901412,0.3466,2541.9,2541.7,4.15390794]
[1748878901750,0.3466,2541.9,2541.7,3.93436579]
[1748878902111,0.3466,2541.9,2541.6,8.32245599]
[1748878902412,0.3466,2541.9,2541.7,4.387]
[1748878902934,0.3466,2541.9,2541.7,8.32134414]
[1748878903234,0.02,2541.9,2541.7,8.32130454]
[1748878903439,0.02,2541.9,2541.8,3.93421984]
[1748878905151,0.02,2541.9,2541.8,0.2194961]
[1748878905523,0.02,2541.9,2541.7,8.32135153]
[1748878906128,0.02,2541.9,2541.8,3.93421984]
[1748878906469,0.02,2541.9,2541.8,12.78305647]
[1748878906750,0.02,2541.9,2541.8,12.74371984]
[1748878909517,0.02,2541.9,2541.8,16.31721984]
[1748878909918,0.02,2541.9,2541.8,8.0]
[1748878910233,0.02,2541.9,2541.8,12.383]
[1748878910537,0.02,2541.9,2541.8,16.31721984]
[1748878910850,0.02,2541.9,2541.8,18.77757209]
[1748878911953,0.02,2541.9,2541.8,18.99710854]
[1748878912159,0.02,2541.9,2541.8,18.77757209]
[1748878915567,0.02,2541.9,2541.8,11.93421984]
[1748878915726,0.02,2541.9,2541.8,8.0]
[1748878916548,0.02,2541.9,2541.8,11.93421984]
[1748878918276,0.02,2541.9,2541.8,16.53267839]
[1748878918481,0.02,2541.9,2541.8,12.379]
[1748878918687,0.3466,2541.9,2541.8,12.379]
[1748878918986,0.3466,2541.9,2541.8,8.0]
[1748878919341,0.3466,2541.9,2541.8,3.93421984]
[1748878919547,0.02,2541.9,2541.8,3.97355901]
[1748878919776,0.02,2541.9,2541.6,3.93441476]
[1748878920003,0.02,2541.9,2541.7,8.3123737]
[1748878920322,0.02,2541.9,2541.7,4.378]
[1748878920703,0.02,2541.9,2541.7,8.31224799]
[1748878920917,0.02,2541.9,2541.7,4.378]
[1748878922105,0.02,2541.9,2541.7,8.31237362]
[1748878922280,0.02,2541.9,2541.7,4.378]
[1748878922476,0.02,2541.9,2541.8,3.93421984]
[1748878922983,0.02,2541.9,2541.5,0.06733862]
[1748878923183,0.02,2541.9,2541.6,8.31142251]
[1748878923390,0.02,2541.9,2541.7,4.15393554]
[1748878923705,0.02,2541.9,2541.8,3.93421984]
[1748878924678,0.02,2541.9,2541.8,5.162713]
[1748878924881,0.02,2541.9,2541.8,4.376]
[1748878925620,0.3466,2541.9,2541.8,4.376]
[1748878925935,0.3466,2541.9,2541.5,0.06733862]
[1748878926209,11.84775984,2541.6,2541.5,0.06733862]
[1748878926973,11.84775984,2541.6,2541.5,0.28701206]
[1748878927169,7.91323041,2541.6,2541.5,0.06733862]
[1748878928110,11.84775984,2541.6,2541.5,0.06733862]
[1748878929110,13.48097623,2541.6,2541.5,0.06733862]
[1748878929408,9.5464468,2541.6,2541.5,0.06733862]
[1748878929571,7.58663041,2541.6,2541.5,0.06733862]
[1748878929774,0.3266,2541.8,2541.5,0.06733862]
[1748878930188,4.2608278,2541.8,2541.5,0.06733862]
[1748878930384,0.3266,2541.8,2541.5,0.06733862]
[1748878930610,0.02,2541.9,2541.5,0.06733862]
[1748878930814,0.02,2541.9,2541.7,3.93427776]
[1748878931317,0.02,2541.9,2541.8,0.21963498]
[1748878931487,0.02,2541.9,2541.8,0.21965579]
[1748878931693,0.02,2541.9,2541.6,3.93452943]
[1748878931694,0.02,2541.9,2541.6,11.93444505]
[1748878932203,0.02,2541.9,2541.8,11.93421984]
[1748878932405,0.02,2541.9,2541.8,13.12764182]
[1748878932813,0.02,2541.9,2541.8,17.50064182]
[1748878933019,0.02,2541.9,2541.8,16.30721984]
[1748878933389,0.02,2541.9,2541.8,16.52676034]
[1748878933725,0.02,2541.9,2541.8,16.30721984]
[1748878934131,0.02,2541.9,2541.8,4.373]
[1748878934627,0.02,2541.9,2541.8,8.30721984]
[1748878934785,0.02,2541.9,2541.8,4.373]
[1748878934986,0.02,2541.9,2541.8,4.59256058]
[1748878935182,0.02,2541.9,2541.8,0.21956585]
[1748878935428,0.02,2541.9,2541.5,5.26819877]
[1748878935429,7.93323041,2541.9,2541.5,0.06733862]
[1748878935727,9.11994108,2541.9,2541.6,0.21961405]
[1748878935891,9.11994108,2541.9,2541.7,0.21963104]
[1748878936087,9.11994108,2541.9,2541.5,8.37291386]
[1748878936288,9.11994108,2541.9,2541.6,3.93444698]
[1748878936489,7.93323041,2541.9,2541.6,3.93444698]
[1748878936788,7.60663041,2541.9,2541.7,3.93424956]
[1748878937333,7.60663041,2541.9,2541.5,8.37301985]
[1748878937821,7.60663041,2541.9,2541.6,3.93444263]
[1748878938023,0.02,2541.9,2541.8,3.93421984]
[1748878938227,0.02,2541.9,2541.8,4.37]
[1748878940251,7.60663041,2541.9,2541.8,4.37]
[1748878941432,8.5985051,2541.9,2541.7,4.368]
[1748878941632,8.59853134,2541.9,2541.7,4.368]
[1748878942377,0.02,2541.9,2541.7,4.81153386]
[1748878942653,0.02,2541.9,2541.8,12.72535637]
[1748878942948,0.02,2541.9,2541.8,12.90554157]
[1748878943148,0.02,2541.9,2541.8,12.68601984]
[1748878943360,4.66442896,2541.9,2541.8,8.0]
[1748878943541,4.66442896,2541.9,2541.8,11.93421984]
[1748878943865,4.66442896,2541.9,2541.8,14.00223126]
[1748878944224,0.02,2541.9,2541.8,14.00223126]
[1748878945513,4.66442896,2541.9,2541.8,0.21955241]
[1748878945714,4.66442896,2541.9,2541.7,8.30227897]
[1748878946122,4.66442896,2541.9,2541.8,3.93421984]
[1748878946719,4.66442896,2541.9,2541.6,3.93442356]
[1748878947013,0.02,2541.9,2541.7,4.366]
[1748878947215,0.02,2541.9,2541.7,8.30037295]
[1748878947423,0.02,2541.9,2541.8,0.21960498]
[1748878947629,0.02,2541.9,2541.8,3.97356192]
[1748878947827,0.02,2541.9,2541.8,5.20095154]
[1748878948012,0.02,2541.9,2541.8,5.42051626]
[1748878948217,0.02,2541.9,2541.8,5.20095154]
[1748878948420,0.02,2541.9,2541.8,5.16161333]
[1748878949664,0.02,2541.9,2541.8,5.94271333]
[1748878951734,0.02,2541.9,2541.8,2.22798632]
[1748878951913,0.02,2541.9,2541.8,2.00849349]
[1748878952124,0.02,2541.9,2541.8,5.94271333]
[1748878952326,0.02,2541.9,2541.8,6.16220742]
[1748878952525,0.02,2541.9,2541.8,5.94271333]
[1748878952705,0.02,2541.9,2541.8,2.00849349]
[1748878952905,0.02,2541.9,2541.8,0.21948937]
[1748878953132,0.02,2541.9,2541.8,3.93421984]
[1748878954051,0.02,2541.9,2541.8,11.93421984]
[1748878954427,4.66442896,2541.9,2541.8,11.93421984]
[1748878955162,4.66442896,2541.9,2541.8,8.0]
[1748878955452,4.66442896,2541.9,2541.6,4.362]
[1748878955751,4.64442896,2541.7,2541.6,8.29652943]
[1748878959460,4.66442896,2541.9,2541.8,3.93421984]
[1748878959763,4.66442896,2541.9,2541.6,8.2964712]
[1748878959960,4.66442896,2541.9,2541.7,3.93425904]
[1748878960149,4.66442896,2541.9,2541.8,3.93421984]
[1748878961331,0.02,2541.9,2541.8,4.72351984]
[1748878961532,0.02,2541.9,2541.8,6.02944287]
[1748878961958,0.02,2541.9,2541.8,14.02944287]
[1748878968751,4.66442896,2541.9,2541.8,14.02944287]
[1748878968948,4.66442896,2541.9,2541.8,17.07851984]
[1748878973992,4.66442896,2541.9,2541.8,16.28921984]
[1748878974446,4.66442896,2541.9,2541.8,11.93421984]
[1748878974650,4.66442896,2541.9,2541.8,16.28621984]
[1748878977785,4.66442896,2541.9,2541.8,11.93421984]
[1748878977987,4.66442896,2541.9,2541.8,16.28521984]
[1748878979490,4.66442896,2541.9,2541.8,16.28421984]
[1748878980201,4.66442896,2541.9,2541.7,3.93429259]
[1748878980372,5.55690927,2541.9,2541.5,0.06733862]
[1748878980577,4.64442896,2541.6,2541.5,0.06733862]
[1748878980794,4.97102896,2541.6,2541.5,0.06733862]
[1748878983328,0.02,2541.9,2541.8,3.93421984]
[1748878983710,0.02,2541.9,2541.7,3.93427096]
[1748878983931,0.02,2541.9,2541.8,3.93421984]
[1748878984105,4.66442896,2541.9,2541.8,3.93421984]
[1748878984605,4.66442896,2541.9,2541.8,8.28221984]
[1748878984988,4.66442896,2541.9,2541.8,4.348]
[1748878985313,4.66442896,2541.9,2541.5,0.06733862]
[1748878985483,0.02,2541.9,2541.8,4.348]
[1748878985683,4.66442896,2541.9,2541.8,4.348]
[1748878987926,5.55692421,2541.9,2541.5,0.06733862]
[1748878988139,4.64442896,2541.6,2541.5,0.06733862]
[1748878988928,4.64442896,2541.6,2541.5,4.00202286]
[1748878989100,4.64442896,2541.6,2541.5,0.06733862]
[1748878990832,8.57895839,2541.6,2541.5,0.06733862]
[1748878991021,0.3266,2541.4,2540.8,3.93565331]
[1748878991201,4.64442896,2540.9,2540.8,3.93567356]
[1748878991695,0.3266,2541.4,2540.8,3.93567356]
[1748878991696,4.64442896,2541.1,2541.0,3.93545848]
[1748878991901,4.64442896,2541.1,2540.8,3.93567356]
[1748878991902,4.64442896,2541.1,2540.9,8.28052686]
[1748878992634,4.64442896,2541.1,2541.0,3.93545848]
[1748878992938,4.64442896,2541.1,2540.9,8.28053421]
[1748878993237,4.64442896,2541.1,2540.9,4.345]
[1748878993400,4.64442896,2541.1,2540.9,8.28061278]
[1748878994869,4.64442896,2541.1,2541.0,3.93545848]
[1748878995160,4.64442896,2541.1,2540.9,8.28052985]
[1748878996033,4.64442896,2541.1,2541.0,3.93545848]
[1748878996238,4.64442896,2541.1,2540.9,4.345]
[1748878996850,4.64442896,2541.1,2540.9,8.28055494]
[1748878997750,4.64442896,2541.1,2541.0,3.93545848]
[1748878998603,4.64442896,2541.5,2541.2,3.93500775]
[1748878999005,4.64442896,2541.5,2541.2,8.27700775]
[1748878999438,4.64442896,2541.5,2541.3,3.93495974]
[1748878999627,4.64442896,2541.5,2541.2,8.27707872]
[1748879000252,4.64442896,2541.5,2541.3,3.93490462]
[1748879000405,4.64442896,2541.5,2541.1,3.9352145]
[1748879000406,0.3266,2541.4,2541.1,3.9352145]
[1748879000612,4.64442896,2541.3,2541.1,3.9352145]
[1748879000810,4.64442896,2541.3,2541.2,8.27614874]
[1748879001237,4.64442896,2541.3,2541.2,4.341]
[1748879001606,4.64442896,2541.5,2541.4,3.93483906]
[1748879001806,4.64442896,2541.7,2541.5,3.93461805]
[1748879002857,0.02,2541.9,2541.5,5.18814282]
[1748879003007,0.02,2541.9,2541.8,3.93421984]
[1748879003621,0.02,2541.9,2541.8,8.27421984]
[1748879003848,0.02,2541.9,2541.8,4.34]
[1748879004026,0.02,2541.9,2541.8,8.27421984]
[1748879004230,0.02,2541.9,2541.8,4.34]
[1748879004548,0.02,2541.9,2541.7,4.34]
[1748879004752,4.64442896,2541.8,2541.7,4.34]
[1748879004904,4.97102896,2541.8,2541.0,0.8142]
[1748879005105,4.64442896,2541.2,2541.1,8.0]
[1748879005305,4.64442896,2541.2,2540.7,4.7286517]
[1748879005549,4.64442896,2540.9,2540.8,8.27466355]
[1748879005747,4.64442896,2540.9,2540.8,16.27466355]
[1748879006419,4.64442896,2541.1,2541.0,3.93536341]
[1748879006603,4.64442896,2541.1,2540.9,11.93553471]
[1748879006807,4.64442896,2541.1,2541.0,3.93545848]
[1748879007506,4.64442896,2541.1,2540.9,11.9355251]
[1748879007735,4.64442896,2541.1,2540.9,12.338]
[1748879007944,5.53505129,2541.1,2540.9,8.0]
[1748879008453,5.53505129,2541.1,2540.8,8.2737325]
[1748879008744,4.64442896,2540.9,2540.8,16.2727325]
[1748879008942,4.64442896,2540.9,2540.8,16.27276826]
[1748879009307,4.64442896,2540.9,2540.8,11.93576826]
[1748879009506,4.64442896,2540.9,2540.8,16.27276826]
[1748879010205,0.3266,2541.3,2541.0,3.93532806]
[1748879010542,4.64442896,2541.2,2541.0,3.93532806]
[1748879010742,4.64442896,2541.2,2540.9,8.27253347]
[1748879010920,4.64442896,2541.2,2540.9,3.93553347]
[1748879011132,4.64442896,2541.2,2540.9,8.27253347]
[1748879011445,4.64442896,2541.2,2540.9,8.27251791]
[1748879011747,4.64442896,2541.2,2541.0,3.93545016]
[1748879013266,4.64442896,2541.2,2540.9,8.27252076]
[1748879013615,4.64442896,2541.0,2540.8,11.93565546]
[1748879013831,0.85792802,2541.2,2540.9,4.335]
[1748879014023,3.93492004,2541.4,2540.9,4.335]
[1748879014024,4.64442896,2541.1,2541.0,3.93541942]
[1748879014330,4.64442896,2541.1,2540.9,9.06014364]
[1748879014916,4.64442896,2541.1,2541.0,4.335]
[1748879016455,4.64442896,2541.1,2541.0,8.27045848]
[1748879017565,4.64442896,2541.1,2541.0,4.335]
[1748879017859,0.55,2541.0,2540.4,3.93631443]
[1748879018062,4.64442896,2540.5,2540.3,4.68915019]
[1748879018217,4.64442896,2540.5,2540.3,0.7527]
[1748879018417,4.64442896,2540.5,2540.4,12.333]
[1748879018623,0.40274608,2540.7,2540.6,3.93601164]
[1748879018820,4.64442896,2541.0,2540.4,12.333]
[1748879019055,4.64442896,2540.8,2540.5,0.03935675]
[1748879019271,5.04484294,2540.8,2540.6,8.26900162]
[1748879019427,5.04484294,2540.8,2540.7,3.93592317]
[1748879019626,4.64442896,2540.8,2540.7,3.93592317]
[1748879019843,4.64442896,2540.8,2540.6,8.2690271]
[1748879020069,4.64442896,2540.8,2540.3,0.7527]
[1748879020070,5.10887186,2540.8,2540.3,0.7527]
[1748879020266,4.64442896,2540.6,2540.5,11.93623302]
[1748879020734,4.64442896,2540.6,2540.5,12.333]
[1748879021761,4.64442896,2540.6,2540.5,16.26923302]
[1748879022263,5.0356344,2540.6,2540.5,16.26923302]
[1748879022963,5.0356344,2540.6,2540.5,12.333]
[1748879023134,5.0356344,2540.6,2540.5,8.0]
[1748879023323,5.0356344,2540.6,2540.5,12.331]
[1748879023522,5.0356344,2540.6,2540.5,12.332]
[1748879023928,5.0356344,2540.6,2540.5,8.0]
[1748879024159,5.0356344,2540.6,2540.5,12.331]
[1748879025562,5.0356344,2540.6,2540.5,4.331]
[1748879025738,6.25938356,2540.6,2540.5,4.331]
[1748879025947,5.3622344,2540.6,2540.4,8.0]
[1748879026175,4.64442896,2540.5,2540.4,12.33]
[1748879026557,4.64442896,2540.5,2540.4,16.26638797]
[1748879027654,4.64442896,2540.5,2540.4,8.0]
[1748879027851,4.64442896,2540.5,2540.4,12.33]
[1748879028052,4.64442896,2540.5,2540.4,11.93638797]
[1748879028292,4.64442896,2540.5,2540.4,16.26638797]
[1748879028482,4.64442896,2540.5,2540.4,11.93638797]
[1748879028678,4.64442896,2540.5,2540.4,16.26538797]
[1748879029287,4.64442896,2540.5,2540.4,11.93638797]
[1748879029485,4.64442896,2540.5,2540.4,16.26538797]
[1748879032417,4.64442896,2540.5,2540.4,16.26438797]
[1748879032601,4.64442896,2540.5,2540.4,12.328]
[1748879032898,5.1479924,2540.5,2540.3,4.328]
[1748879033095,3.9364207,2540.4,2540.0,3.93694352]
[1748879033392,4.64442896,2540.1,2540.0,3.93694352]
[1748879033596,4.64442896,2540.1,2540.0,8.26494352]
[1748879033797,4.64442896,2540.1,2539.8,3.93721934]
[1748879034099,4.26321963,2540.3,2539.9,16.26414524]
[1748879034277,0.42632196,2540.2,2539.9,11.93714524]
[1748879034598,0.42632196,2540.2,2539.9,16.26414544]
[1748879034769,0.42632196,2540.2,2540.0,3.93698118]
[1748879035102,0.42632196,2540.2,2539.9,8.2640945]
[1748879035299,4.64442896,2540.0,2539.8,3.9372287]
[1748879035507,4.64442896,2540.0,2539.9,4.327]
[1748879035667,4.64442896,2540.0,2539.7,3.99908753]
[1748879035865,4.64442896,2539.8,2539.7,0.06172362]
[1748879036066,4.64442896,2539.8,2539.7,8.32519654]
[1748879036267,4.64442896,2539.8,2539.7,8.06172362]
[1748879036467,4.64442896,2539.8,2539.7,12.38772362]
[1748879036886,4.64442896,2539.8,2539.7,16.32519654]
[1748879037289,4.64442896,2540.0,2539.9,3.93710122]
[1748879037490,0.3266,2540.3,2540.1,3.93685287]
[1748879037801,8.90758745,2540.3,2540.0,4.326]
[1748879037968,4.64442896,2540.1,2540.0,4.326]
[1748879039011,4.64442896,2540.1,2540.0,8.26300787]
[1748879039809,4.64442896,2540.1,2539.8,3.93725153]
[1748879039810,4.64442896,2540.1,2539.8,8.26219347]
[1748879040185,4.64442896,2540.1,2539.9,3.93714431]
[1748879041017,4.64442896,2540.1,2540.0,3.93700787]
[1748879041326,4.97102896,2540.9,2540.3,0.7702]
[1748879041478,4.64442896,2540.9,2540.7,3.93592066]
[1748879042096,3.93480467,2541.5,2540.9,3.93546147]
[1748879042311,0.81959806,2541.4,2541.1,3.9353036]
[1748879042484,0.3266,2541.6,2541.0,4.324]
[1748879042673,4.64442896,2541.4,2541.1,3.9353036]
[1748879042871,4.64442896,2541.2,2540.7,0.7704]
[1748879043108,4.64442896,2541.0,2540.9,11.93561336]
[1748879043326,0.3266,2541.6,2541.1,3.93521769]
[1748879043327,4.64442896,2541.2,2541.1,3.93521769]
[1748879043528,4.64442896,2541.3,2541.1,8.25822641]
[1748879043687,4.64442896,2541.5,2541.2,3.93514874]
[1748879043876,4.64442896,2541.5,2541.1,5.0823]
[1748879044080,4.64442896,2541.5,2541.3,3.9349752]
[1748879044392,4.64442896,2541.5,2541.4,4.323]
[1748879044768,5.53497051,2541.5,2541.4,4.322]
[1748879045215,5.91918641,2541.5,2541.4,4.322]
[1748879045412,5.02864486,2541.5,2541.4,4.322]
[1748879046883,0.3842159,2541.5,2541.4,4.322]
[1748879047115,4.64442896,2541.5,2541.4,4.322]
[1748879047276,3.93534038,2541.1,2540.7,0.8168]
[1748879047478,4.64442896,2540.8,2540.4,4.321]
[1748879047689,4.97102896,2541.0,2540.0,5.15686628]
[1748879047690,4.64442896,2540.5,2540.0,5.15686628]
[1748879047898,4.64442896,2540.1,2540.0,4.321]